bitfinex/quotes_ETHUSD_20241004
["timestamp","ask_amount","ask_price","bid_price","bid_amount"]
[1728053698461,0.7729,2373.1,2372.8,8.42869]
[1728053698765,3.0,2373.2,2372.8,4.21433]
[1728053699069,7.8835608,2373.2,2372.8,4.21433]
[1728053699389,8.54434861,2373.2,2372.8,4.21433]
[1728053699561,4.2139,2373.1,2372.7,4.2146]
[1728053700161,5.54434861,2373.2,2372.7,4.2146]
[1728053700396,5.54434861,2373.2,2372.8,4.21429]
[1728053700567,0.66078781,2373.2,2372.6,4.97725]
[1728053700769,0.66078781,2373.2,2373.1,4.21389]
[1728053700972,0.66078781,2373.2,2373.1,5.02969]
[1728053701187,8.0742,2373.8,2373.1,5.02969]
[1728053701188,4.21318,2373.5,2373.1,5.02969]
[1728053701392,0.66068002,2373.2,2373.1,5.02969]
[1728053701700,4.21318,2373.5,2373.1,4.21389]
[1728053701878,4.21318,2373.5,2372.9,0.8158]
[1728053701879,0.66068653,2373.2,2372.9,0.8158]
[1728053702202,4.21337,2373.4,2372.9,0.8158]
[1728053702203,4.21359,2373.3,2372.9,5.02996]
[1728053702371,0.66070508,2373.2,2372.9,5.02996]
[1728053702699,0.66070508,2373.2,2373.1,4.21389]
[1728053703506,0.66070508,2373.2,2373.0,4.21406]
[1728053703706,0.66070508,2373.2,2373.1,4.21389]
[1728053704134,0.66070508,2373.2,2373.1,9.03419872]
[1728053704402,8.1253,2373.8,2373.5,4.21316]
[1728053704622,0.8153,2373.9,2373.6,4.2129]
[1728053705136,0.66060922,2373.8,2373.6,4.2129]
[1728053706898,0.66060922,2373.8,2373.5,4.21316]
[1728053707841,1.65068614,2373.8,2373.5,4.21316]
[1728053708038,1.65068614,2373.8,2373.5,4.21306]
[1728053709640,1.65068614,2373.8,2373.3,4.21338]
[1728053709843,5.86334614,2373.8,2373.4,4.21333]
[1728053710763,1.08911361,2373.7,2373.4,4.21336]
[1728053710914,4.21306,2373.6,2373.2,4.21359]
[1728053711110,4.21306,2373.6,2372.9,3.99130872]
[1728053711111,4.21345,2373.4,2372.9,4.21413]
[1728053711319,5.08042233,2373.7,2372.8,4.96679]
[1728053711320,4.99342,2373.2,2372.8,4.96679]
[1728053711949,4.99344,2373.2,2372.7,4.21448]
[1728053712111,4.2139,2373.1,2372.7,4.21448]
[1728053712310,4.99344,2373.2,2372.7,4.21448]
[1728053712535,4.21412,2373.0,2372.6,4.9663]
[1728053712743,0.7797,2373.2,2372.6,4.9663]
[1728053712744,4.2139,2373.1,2372.7,4.2146]
[1728053712944,0.49936,2373.0,2372.6,9.181]
[1728053713162,4.21433,2372.9,2372.4,5.01429]
[1728053713361,4.98821,2372.8,2372.4,4.21499]
[1728053713516,8.97951872,2372.8,2371.5,0.805]
[1728053713719,8.97951872,2372.8,2372.2,4.21537]
[1728053713720,0.89795187,2372.7,2372.2,4.21537]
[1728053714024,5.11261187,2372.7,2372.1,5.02064]
[1728053714365,5.11261187,2372.7,2371.2,16.55714]
[1728053714366,7.99017,2371.7,2371.2,4.21726]
[1728053714571,7.99017,2371.7,2370.6,0.805]
[1728053714572,0.799017,2371.6,2370.9,4.21768]
[1728053714735,0.7737,2371.7,2371.2,4.21722]
[1728053714939,0.7737,2371.7,2371.3,4.21695]
[1728053715119,0.7737,2371.7,2371.4,4.21688]
[1728053715448,0.7737,2371.7,2371.3,4.21695]
[1728053716238,4.99017,2371.7,2371.2,4.21727]
[1728053716433,4.21665,2371.6,2371.1,4.21732]
[1728053716618,4.21703,2371.4,2370.9,4.21769]
[1728053716851,4.2171,2371.3,2370.8,5.00296]
[1728053717047,4.21768,2371.0,2370.6,4.21822]
[1728053717222,0.7864,2371.2,2370.6,8.43647]
[1728053717223,4.21745,2371.1,2370.6,8.43647]
[1728053717429,4.21745,2371.1,2370.6,4.21822]
[1728053717820,0.7864,2371.2,2370.6,4.21822]
[1728053718054,4.21753,2371.1,2370.6,4.21822]
[1728053718258,4.21772,2371.0,2370.5,8.00341]
[1728053718658,8.9776633,2371.1,2370.5,8.00341]
[1728053718962,4.7600933,2371.1,2370.6,4.21832]
[1728053719290,8.9776333,2371.1,2370.6,4.21832]
[1728053719692,4.7600933,2371.1,2370.6,4.21832]
[1728053719898,0.55464933,2371.0,2370.6,4.21832]
[1728053720201,4.21789,2370.9,2370.3,4.21876]
[1728053720601,4.21809,2370.8,2370.3,4.21876]
[1728053720769,4.21789,2370.9,2370.2,5.03099]
[1728053720770,4.21819,2370.7,2370.2,5.03099]
[1728053720978,5.061798,2370.7,2370.2,8.43784]
[1728053721174,5.061798,2370.7,2370.2,4.21889]
[1728053721661,0.843608,2370.7,2370.3,4.21872]
[1728053721860,4.21793,2370.9,2370.4,4.21859]
[1728053722095,4.21793,2370.9,2370.5,4.21851]
[1728053722293,4.77228933,2371.0,2370.5,4.21851]
[1728053722495,4.21784,2370.9,2370.3,8.43741]
[1728053722797,4.77228933,2371.0,2370.6,4.21824]
[1728053722798,0.55464933,2371.0,2370.6,4.21824]
[1728053723009,0.55464933,2371.0,2370.7,4.21815]
[1728053723224,0.7864,2371.2,2370.7,4.21802]
[1728053723425,0.7864,2371.2,2370.8,4.21789]
[1728053723600,5.00379,2371.2,2370.7,8.43606]
[1728053723797,5.00379,2371.2,2370.7,4.21802]
[1728053724005,0.92209,2371.1,2370.7,4.21802]
[1728053724185,0.92209,2371.1,2370.7,8.43609]
[1728053724610,0.92209,2371.1,2370.7,8.43608]
[1728053724920,0.92209,2371.1,2370.7,4.21802]
[1728053725643,5.13956,2371.1,2370.7,4.21802]
[1728053725983,0.592596,2371.0,2370.7,4.21802]
[1728053726186,5.13955,2371.1,2370.7,4.21802]
[1728053726780,0.92209,2371.1,2370.4,0.8136]
[1728053726981,0.7864,2371.2,2370.9,8.43543]
[1728053727212,0.7864,2371.2,2370.9,4.21771]
[1728053728283,0.7864,2371.2,2370.7,4.21803]
[1728053728284,0.7864,2371.2,2370.7,8.43607]
[1728053728588,5.00367,2371.2,2370.7,4.21815]
[1728053728784,5.00367,2371.2,2370.5,4.2184]
[1728053728977,0.500367,2371.1,2370.7,4.21806]
[1728053729177,0.500367,2371.1,2370.5,4.21839]
[1728053729178,4.717967,2371.1,2370.5,4.21839]
[1728053729417,4.717967,2371.1,2370.6,4.21816]
[1728053729623,4.717967,2371.1,2370.7,4.21814]
[1728053729810,4.21764,2371.0,2370.5,4.21841]
[1728053730037,4.717967,2371.1,2370.4,4.21867]
[1728053730038,4.21804,2370.8,2370.4,4.21867]
[1728053731010,0.7783,2370.7,2370.2,4.21891]
[1728053731327,4.21843,2370.6,2370.1,4.97345]
[1728053731527,4.21843,2370.6,2370.1,4.21915]
[1728053731765,4.21873,2370.4,2369.9,4.21956]
[1728053731911,4.21873,2370.4,2369.8,4.21968]
[1728053731912,4.21896,2370.3,2369.8,4.21968]
[1728053732112,9.281312,2370.4,2369.8,4.21967]
[1728053732312,4.21888,2370.3,2369.9,4.21958]
[1728053732550,0.8038,2370.2,2369.9,4.21958]
[1728053732913,0.8038,2370.2,2370.0,4.2193]
[1728053733113,0.8038,2370.2,2369.9,8.43906]
[1728053733351,0.8038,2370.2,2369.8,4.21967]
[1728053733352,1.3904272,2370.2,2369.8,4.21967]
[1728053733508,1.3904272,2370.2,2369.9,4.21956]
[1728053733712,1.3904272,2370.2,2369.4,3.8274]
[1728053733914,0.8038,2370.2,2369.9,4.21948]
[1728053735071,0.8038,2370.2,2369.8,4.21974]
[1728053735358,5.02286,2370.2,2369.8,4.21974]
[1728053735559,0.8038,2370.2,2369.8,4.21974]
[1728053736059,0.8038,2370.2,2369.8,4.21964]
[1728053736350,0.8038,2370.2,2369.6,4.22001]
[1728053736351,4.21941,2370.0,2369.6,4.22001]
[1728053736537,4.21936,2370.1,2369.6,4.22001]
[1728053736752,4.21949,2370.0,2369.6,4.22001]
[1728053737116,4.21949,2370.0,2369.5,4.22019]
[1728053737449,0.7575,2369.8,2369.5,4.22022]
[1728053737650,0.7575,2369.8,2369.5,4.22021]
[1728053739454,0.7575,2369.8,2369.2,3.8121]
[1728053739652,0.7575,2369.8,2369.4,4.2204]
[1728053739814,5.9391519,2369.8,2369.4,4.2204]
[1728053740016,4.21995,2369.7,2369.2,5.03276]
[1728053740219,4.2202,2369.6,2369.1,4.2209]
[1728053740522,4.22037,2369.5,2369.0,8.44226]
[1728053740745,4.22037,2369.5,2369.0,8.44219]
[1728053740955,1.658857,2369.4,2369.0,4.22108]
[1728053741263,5.03531,2369.4,2369.0,4.22115]
[1728053741726,0.8148,2369.4,2369.0,4.22107]
[1728053741929,3.0,2369.6,2369.2,8.44151]
[1728053742139,3.0,2369.6,2369.3,4.22058]
[1728053742464,0.421949,2369.9,2369.7,4.21982]
[1728053742648,0.805,2370.0,2369.8,4.21975]
[1728053742962,5.02445,2370.0,2369.6,4.22002]
[1728053743127,0.805,2370.0,2369.6,4.22002]
[1728053743447,0.805,2370.0,2369.7,4.21993]
[1728053744054,1.307425,2370.0,2369.6,4.22002]
[1728053744952,4.21964,2369.9,2369.3,4.22058]
[1728053745260,4.21988,2369.8,2369.4,4.22046]
[1728053746857,4.21964,2369.9,2369.2,4.22066]
[1728053747182,0.8234,2369.7,2369.2,4.22066]
[1728053747323,5.04346,2369.7,2369.2,8.44141]
[1728053747714,0.8234,2369.7,2369.4,4.22045]
[1728053747948,0.8234,2369.7,2369.3,4.22063]
[1728053748214,1.38299365,2369.7,2369.3,4.22063]
[1728053748365,4.22021,2369.6,2369.1,8.44176]
[1728053748570,4.22032,2369.5,2369.1,4.22087]
[1728053748777,5.60306365,2369.7,2368.8,0.752]
[1728053748925,4.22019,2369.6,2369.2,4.22075]
[1728053749428,4.22019,2369.6,2369.1,4.22091]
[1728053749630,4.22019,2369.6,2369.1,8.44181]
[1728053749829,4.22019,2369.6,2369.2,4.22081]
[1728053750231,9.366802,2369.6,2369.1,4.2209]
[1728053751642,9.366822,2369.6,2369.1,4.2209]
[1728053751852,4.22078,2369.3,2368.9,4.22134]
[1728053752253,4.22055,2369.4,2369.0,4.22118]
[1728053752461,5.06479,2369.3,2368.9,4.22132]
[1728053752632,4.22069,2369.3,2368.9,4.22132]
[1728053752839,0.7954,2369.2,2368.9,4.22132]
[1728053753143,0.7954,2369.2,2368.9,4.22126]
[1728053753346,5.01633,2369.2,2368.8,4.22154]
[1728053753547,5.517939,2369.2,2368.8,4.22154]
[1728053754481,4.22133,2369.0,2368.5,4.222]
[1728053754634,4.22133,2369.0,2367.8,7.46]
[1728053754635,4.22194,2368.6,2368.2,4.22257]
[1728053754837,4.22194,2368.6,2368.2,8.44514]
[1728053754838,4.97784,2368.6,2368.2,8.44514]
[1728053755034,0.422133,2368.9,2368.2,8.44514]
[1728053755035,1.220733,2368.9,2368.2,4.22261]
[1728053755267,7.31,2369.0,2368.7,4.22164]
[1728053755532,5.01973,2369.1,2368.7,4.22164]
[1728053755738,4.2212,2369.0,2368.5,5.02974]
[1728053756034,4.2212,2369.0,2368.6,4.22188]
[1728053756446,5.01973,2369.1,2368.5,4.22194]
[1728053756447,4.22137,2368.9,2368.5,4.22194]
[1728053756648,4.22137,2368.9,2368.5,8.44393]
[1728053757242,4.22137,2368.9,2368.5,4.22194]
[1728053757444,4.22137,2368.9,2368.5,8.44389]
[1728053757661,4.22137,2368.9,2368.5,4.22194]
[1728053757981,5.23068439,2368.9,2368.5,4.22194]
[1728053758345,5.23068439,2368.9,2368.1,0.8043]
[1728053758535,5.23070439,2368.9,2368.5,4.22199]
[1728053758740,4.22139,2368.9,2368.5,4.22199]
[1728053758964,4.22126,2369.0,2368.6,4.22187]
[1728053759613,5.01972,2369.1,2368.6,4.22187]
[1728053759893,5.01972,2369.1,2368.7,4.22165]
[1728053760045,0.7986,2369.1,2368.8,4.22143]
[1728053760244,0.501609,2369.2,2368.6,0.7799]
[1728053760456,0.501609,2369.2,2369.0,4.22118]
[1728053761096,0.7508,2369.5,2369.1,4.22093]
[1728053761254,0.7508,2369.5,2369.2,4.22081]
[1728053761858,0.8141,2369.7,2369.4,4.22047]
[1728053762798,0.7563,2370.0,2369.5,0.7871]
[1728053763002,4.2188,2370.4,2370.0,4.2193]
[1728053763003,0.7563,2370.4,2370.0,4.2193]
[1728053763457,0.7563,2370.4,2370.0,8.43861]
[1728053763658,0.7563,2370.4,2370.0,4.2193]
[1728053764071,4.21851,2370.5,2370.0,4.21929]
[1728053764271,4.9886,2370.7,2370.0,0.421929]
[1728053764465,7.31,2370.8,2370.4,4.21855]
[1728053764798,11.52798,2370.8,2370.3,4.21874]
[1728053764944,7.31,2370.8,2370.3,4.21873]
[1728053765152,0.66146495,2370.7,2370.3,4.21873]
[1728053765348,0.66146495,2370.7,2370.3,8.43748]
[1728053765697,0.66146495,2370.7,2370.3,4.21873]
[1728053766296,2.30220145,2370.7,2369.9,4.21947]
[1728053766480,4.21867,2370.5,2370.1,4.21922]
[1728053766687,0.8041,2370.6,2370.3,4.21879]
[1728053766900,5.02245,2370.6,2370.2,4.21904]
[1728053767131,0.8041,2370.6,2370.2,4.21904]
[1728053767293,5.02244,2370.6,2370.2,4.21904]
[1728053767822,0.8041,2370.6,2370.1,4.21912]
[1728053768027,4.2186,2370.5,2369.9,4.21944]
[1728053768185,4.21895,2370.3,2369.8,7.21968]
[1728053768385,4.21895,2370.3,2369.8,4.21968]
[1728053768589,0.843776,2370.2,2369.8,4.21968]
[1728053769335,4.21895,2370.3,2369.5,0.7864]
[1728053769336,4.21895,2370.3,2369.9,4.21947]
[1728053769626,6.7437895,2370.6,2369.9,4.21948]
[1728053769800,6.7437895,2370.6,2370.1,4.21921]
[1728053770000,10.9622095,2370.6,2370.1,4.21921]
[1728053770206,4.21852,2370.5,2369.9,4.21946]
[1728053770514,5.38089044,2370.5,2370.0,4.21936]
[1728053770821,2.5252995,2370.6,2370.1,4.2191]
[1728053770992,6.7437095,2370.6,2370.1,4.2191]
[1728053771391,4.21852,2370.5,2370.1,4.2191]
[1728053772032,6.7436595,2370.6,2370.1,8.43821]
[1728053772337,6.7436595,2370.6,2370.1,4.2191]
[1728053772338,4.21862,2370.5,2370.1,4.2191]
[1728053772635,10.9621395,2370.6,2370.1,4.2191]
[1728053772985,1.16236044,2370.5,2369.7,4.21981]
[1728053773278,1.16236044,2370.5,2369.8,4.21968]
[1728053773279,4.21899,2370.3,2369.8,4.21968]
[1728053773542,4.21892,2370.3,2369.8,4.21968]
[1728053773888,4.21855,2370.5,2370.0,4.2194]
[1728053774556,4.21855,2370.5,2370.0,4.21932]
[1728053774903,4.2187,2370.4,2370.0,4.21932]
[1728053775335,4.21873,2370.4,2369.8,4.21958]
[1728053775635,4.21894,2370.3,2369.8,4.21958]
[1728053775838,4.21894,2370.3,2369.9,4.21949]
[1728053776196,4.21894,2370.3,2369.8,4.21958]
[1728053776707,4.21894,2370.3,2369.9,4.21957]
[1728053777200,8.43795,2370.3,2369.8,4.21958]
[1728053777418,5.1723587,2370.3,2369.7,4.21986]
[1728053777602,0.7633,2370.2,2369.7,4.21986]
[1728053777802,8.43859,2370.1,2369.6,4.22]
[1728053778139,4.21923,2370.1,2369.7,4.21991]
[1728053778294,4.21923,2370.1,2369.5,4.22021]
[1728053778295,4.21941,2370.0,2369.5,4.22021]
[1728053778526,4.21923,2370.1,2369.6,4.22004]
[1728053778753,5.06123136,2370.1,2369.6,4.22004]
[1728053779232,4.21959,2369.9,2369.5,4.22021]
[1728053779552,5.06123136,2370.1,2369.6,4.22009]
[1728053779954,4.2195,2370.0,2369.5,4.22021]
[1728053780169,4.2195,2370.0,2369.5,8.44038]
[1728053780352,4.21943,2370.0,2369.5,4.22017]
[1728053780525,5.22390614,2370.0,2369.6,4.2201]
[1728053781372,5.22390614,2370.0,2369.1,4.00927581]
[1728053781373,4.22038,2369.5,2369.0,5.04628]
[1728053781569,4.22071,2369.3,2368.9,4.22129]
[1728053781725,0.8093,2369.2,2368.9,4.2213]
[1728053781929,5.03016,2369.2,2368.8,4.22141]
[1728053782186,4.22104,2369.1,2368.7,4.22169]
[1728053782328,4.22104,2369.1,2368.3,4.00927581]
[1728053782329,4.22128,2369.0,2368.4,5.0473]
[1728053782525,4.22104,2369.1,2368.4,5.0473]
[1728053782526,8.44217,2369.1,2368.5,4.22195]
[1728053782835,4.22103,2369.1,2368.6,4.22172]
[1728053783059,1.734384,2369.2,2368.9,4.22128]
[1728053783264,0.8093,2369.2,2368.9,4.22128]
[1728053783840,0.8093,2369.2,2368.9,4.22125]
[1728053784039,0.7835,2369.5,2369.3,4.2205]
[1728053784240,4.21989,2369.8,2369.3,4.2205]
[1728053784241,3.7835,2369.8,2369.3,4.2205]
[1728053784571,0.7835,2369.8,2369.5,4.2202]
[1728053784774,0.7835,2369.8,2369.6,4.22]
[1728053785074,0.7835,2369.8,2369.5,4.2202]
[1728053785572,0.7835,2369.8,2369.6,4.22011]
[1728053785987,4.21926,2370.1,2369.7,4.21994]
[1728053786172,4.21926,2370.1,2369.8,4.21968]
[1728053786173,0.7829,2370.1,2369.8,4.21968]
[1728053787203,0.7829,2370.1,2369.7,4.21994]
[1728053787504,5.00214,2370.1,2369.7,4.21994]
[1728053787806,5.00223,2370.1,2369.6,4.22002]
[1728053788016,4.21962,2369.9,2369.4,4.22036]
[1728053788415,1.70504,2370.1,2369.7,4.21994]
[1728053788416,5.00216,2370.1,2369.7,4.21994]
[1728053789115,0.7829,2370.1,2369.8,4.21967]
[1728053790009,0.7829,2370.1,2369.7,4.21983]
[1728053790309,5.00213,2370.1,2369.7,4.21983]
[1728053790881,0.7829,2370.1,2369.7,8.4397]
[1728053791103,0.7829,2370.1,2369.7,4.21983]
[1728053791615,5.00215,2370.1,2369.7,4.21983]
[1728053792714,4.21941,2370.0,2369.6,4.22001]
[1728053793113,1.705023,2370.1,2369.7,4.21989]
[1728053793114,5.924283,2370.1,2369.7,4.21989]
[1728053793412,4.21897,2370.3,2369.8,4.21966]
[1728053793677,0.7617,2370.4,2369.8,0.8005]
[1728053794012,11.96987983,2370.6,2369.8,0.8005]
[1728053794013,11.52843,2370.6,2370.1,4.21906]
[1728053794210,4.2186,2370.5,2370.1,4.21906]
[1728053794456,4.2186,2370.5,2370.0,4.21935]
[1728053794753,8.43724,2370.5,2370.0,4.2194]
[1728053795051,4.21885,2370.4,2369.8,5.02012]
[1728053795357,4.97267,2370.2,2369.8,4.21962]
[1728053795513,4.97267,2370.2,2369.6,4.21996]
[1728053795514,4.21932,2370.1,2369.6,4.21996]
[1728053795708,4.21943,2370.0,2369.6,4.21996]
[1728053795938,4.21932,2370.1,2369.6,8.43999]
[1728053796108,4.21932,2370.1,2369.5,4.98897]
[1728053796109,4.716612,2370.1,2369.5,4.98897]
[1728053796314,4.21949,2370.0,2369.6,4.22011]
[1728053796912,4.21959,2369.9,2369.4,8.4406]
[1728053797139,4.21959,2369.9,2369.5,4.22027]
[1728053797314,5.01687,2369.7,2369.2,4.22073]
[1728053797509,4.22021,2369.6,2369.2,4.22073]
[1728053797928,5.01687,2369.7,2369.3,4.22064]
[1728053798583,0.7968,2369.7,2369.3,4.22064]
[1728053799085,0.7968,2369.7,2369.3,8.44117]
[1728053799242,5.01675,2369.7,2369.1,4.22087]
[1728053799441,4.22025,2369.6,2369.2,4.22075]
[1728053799745,0.7968,2369.7,2369.3,4.22057]
[1728053799944,0.7968,2369.7,2369.3,4.22052]
[1728053800249,4.21982,2369.8,2369.3,4.22052]
[1728053800468,4.21982,2369.8,2369.4,4.22046]
[1728053801040,4.22002,2369.7,2369.3,4.22064]
[1728053801468,4.21998,2369.7,2369.2,4.22073]
[1728053801685,5.0054,2369.5,2369.1,4.22087]
[1728053802094,5.0054,2369.5,2369.0,0.7712]
[1728053802095,4.22057,2369.4,2369.0,0.7712]
[1728053802387,4.22057,2369.4,2369.0,4.22116]
[1728053803379,5.00542,2369.5,2368.7,0.7625]
[1728053803580,5.00542,2369.5,2369.0,4.22108]
[1728053803781,4.22047,2369.4,2369.0,4.22108]
[1728053804459,4.22069,2369.3,2368.9,4.22136]
[1728053804844,0.66185479,2369.4,2369.0,4.22111]
[1728053805184,4.88234479,2369.4,2369.0,4.22111]
[1728053805355,0.66185479,2369.4,2369.0,4.22111]
[1728053805561,0.66185479,2369.4,2369.0,0.422111]
[1728053805746,0.66185479,2369.4,2369.1,4.22095]
[1728053805943,0.66185479,2369.4,2369.2,4.2208]
[1728053806889,0.66185479,2369.4,2369.2,4.22073]
[1728053807090,0.66185479,2369.4,2369.3,4.22065]
[1728053807584,0.66185479,2369.4,2369.2,8.44149]
[1728053807789,0.66185479,2369.4,2369.2,4.22073]
[1728053807993,0.66185479,2369.4,2369.2,4.724433]
[1728053808154,0.66185479,2369.4,2369.2,8.945113]
[1728053808484,0.66185479,2369.4,2369.2,4.724383]
[1728053808714,0.66185479,2369.4,2369.2,4.22068]
[1728053810829,0.66185479,2369.4,2369.3,4.22065]
[1728053814216,0.66185479,2369.4,2369.0,4.2211]
[1728053814632,0.66185479,2369.4,2369.1,4.22093]
[1728053815587,0.66185479,2369.4,2369.1,8.44184]
[1728053815788,0.66185479,2369.4,2369.1,4.22091]
[1728053815987,0.66185479,2369.4,2369.1,8.44183]
[1728053816213,0.66185479,2369.4,2369.1,4.22091]
[1728053817008,0.66185479,2369.4,2369.3,4.22065]
[1728053817954,0.66185479,2369.4,2369.3,8.23188562]
[1728053819642,0.66185479,2369.4,2369.3,4.22065]
[1728053819953,0.66185479,2369.4,2369.3,12.58898562]
[1728053820160,0.7805,2370.3,2369.7,0.8071]
[1728053820316,4.99944,2370.3,2369.8,4.21975]
[1728053820648,0.7805,2370.3,2369.5,0.8071]
[1728053820956,0.7805,2370.3,2369.4,4.01123562]
[1728053820957,0.7559,2369.8,2369.4,4.22047]
[1728053821125,2.65488419,2370.2,2369.4,4.22047]
[1728053821126,0.7559,2370.0,2369.7,4.21982]
[1728053821446,9.96488419,2370.2,2369.7,4.21982]
[1728053821447,7.31,2370.2,2369.9,4.21949]
[1728053821655,4.97478,2370.3,2369.9,4.21949]
[1728053821860,4.97478,2370.3,2369.9,8.439]
[1728053822037,4.97478,2370.3,2369.9,4.21949]
[1728053823159,4.21912,2370.2,2369.8,4.21976]
[1728053823951,4.21908,2370.2,2369.8,4.21976]
[1728053824111,4.21931,2370.1,2369.7,4.21987]
[1728053824315,5.138516,2370.2,2369.8,4.21975]
[1728053824608,4.21935,2370.1,2369.7,4.21987]
[1728053825021,4.21913,2370.2,2369.8,4.21969]
[1728053825022,4.21911,2370.2,2369.8,4.21969]
[1728053825230,4.21911,2370.2,2369.7,4.21994]
[1728053825231,4.21923,2370.1,2369.7,4.21994]
[1728053825539,4.21911,2370.2,2369.8,4.21969]
[1728053825715,4.21911,2370.2,2369.8,8.4393]
[1728053826227,4.21911,2370.2,2369.8,4.21961]
[1728053827343,0.7559,2370.3,2369.9,4.21947]
[1728053827516,0.7559,2370.3,2370.0,4.21925]
[1728053828411,4.97488,2370.3,2369.8,4.21963]
[1728053828607,4.97481,2370.3,2369.9,4.21958]
[1728053828842,4.97481,2370.3,2369.9,8.43908]
[1728053829053,4.97481,2370.3,2369.9,4.2195]
[1728053829328,4.97481,2370.3,2370.0,8.43871]
[1728053829329,0.7559,2370.3,2370.0,8.43871]
[1728053829655,4.97486,2370.3,2369.9,4.21958]
[1728053829825,4.21906,2370.2,2369.8,4.2197]
[1728053830331,4.21906,2370.2,2369.5,5.03083]
[1728053830523,4.21906,2370.2,2369.8,4.21976]
[1728053830728,4.21924,2370.1,2369.7,4.21987]
[1728053830924,4.21905,2370.2,2369.8,4.21975]
[1728053831212,0.7559,2370.3,2369.8,4.21973]
[1728053831444,4.97487,2370.3,2369.9,4.21954]
[1728053831754,4.2192,2370.2,2369.7,4.2198]
[1728053832226,4.21933,2370.1,2369.7,4.2198]
[1728053832810,4.21933,2370.1,2369.7,8.43967]
[1728053833254,4.21908,2370.2,2369.8,4.21976]
[1728053834157,0.7559,2370.3,2370.0,4.2194]
[1728053834364,4.21913,2370.2,2369.8,4.21968]
[1728053835244,4.21913,2370.2,2369.6,8.23121562]
[1728053835450,4.21924,2370.1,2369.7,4.21987]
[1728053836677,4.21913,2370.2,2369.7,4.2198]
[1728053836954,4.21913,2370.2,2369.8,4.21974]
[1728053837374,0.7559,2370.3,2369.8,4.01123562]
[1728053837522,3.48272316,2370.5,2370.2,4.21898]
[1728053837863,0.827,2370.5,2370.0,4.21931]
[1728053838049,4.21882,2370.4,2370.0,4.21931]
[1728053838521,9.26434,2370.5,2370.1,4.21921]
[1728053839156,4.21876,2370.4,2370.0,4.21932]
[1728053839361,5.04567,2370.5,2370.1,4.2192]
[1728053839575,4.219,2370.3,2369.8,4.21967]
[1728053839857,4.21878,2370.4,2370.0,4.21926]
[1728053840031,0.827,2370.1,2369.8,4.21969]
[1728053840238,4.21941,2370.0,2369.7,4.21994]
[1728053840437,4.21894,2370.3,2369.9,4.21949]
[1728053840620,0.827,2370.3,2370.0,4.21931]
[1728053841326,0.827,2370.3,2369.9,4.21958]
[1728053841635,5.04594,2370.3,2369.9,4.21958]
[1728053842058,0.827,2370.3,2369.9,4.21958]
[1728053842260,3.7886,2370.5,2370.1,4.21912]
[1728053842487,0.7886,2370.5,2370.1,4.21911]
[1728053842699,5.00719,2370.5,2370.1,4.21911]
[1728053843008,5.00719,2370.5,2370.2,4.21904]
[1728053843355,5.00719,2370.5,2370.1,4.21911]
[1728053843651,0.7886,2370.5,2370.1,4.21911]
[1728053843852,5.00718,2370.5,2370.1,4.21911]
[1728053844159,5.03509,2370.7,2370.3,4.21876]
[1728053844575,4.21835,2370.6,2370.2,4.21892]
[1728053845066,4.21835,2370.6,2370.1,4.21922]
[1728053845067,4.21853,2370.5,2370.1,8.43836]
[1728053845451,4.21853,2370.5,2370.1,4.21914]
[1728053845873,4.21853,2370.5,2370.1,4.21913]
[1728053846305,4.21838,2370.6,2370.2,4.21897]
[1728053848362,4.21859,2370.5,2370.1,4.21913]
[1728053848992,5.04269,2370.3,2369.9,4.21958]
[1728053849202,5.04269,2370.3,2369.9,4.21951]
[1728053849561,4.2191,2370.2,2369.8,4.21964]
[1728053849757,4.2191,2370.2,2369.9,4.21958]
[1728053849981,4.2191,2370.2,2369.8,4.21969]
[1728053850357,4.2191,2370.2,2369.9,4.21958]
[1728053850558,4.2191,2370.2,2369.8,4.21969]
[1728053850893,0.8237,2370.3,2369.8,4.21969]
[1728053850894,5.04265,2370.3,2369.9,4.21954]
[1728053851101,0.8237,2370.3,2369.8,4.21969]
[1728053851394,4.21908,2370.2,2369.8,4.21972]
[1728053851694,4.21908,2370.2,2369.9,4.21956]
[1728053852266,5.0426,2370.3,2369.9,4.21956]
[1728053855158,4.21914,2370.2,2369.8,4.21972]
[1728053855806,5.04265,2370.3,2369.9,4.21955]
[1728053856129,0.7589,2369.9,2369.6,4.21997]
[1728053856397,0.7589,2370.1,2369.8,4.21968]
[1728053856570,7.64125117,2370.3,2369.9,4.21951]
[1728053856767,4.21871,2370.4,2370.0,4.21939]
[1728053856981,5.65509117,2370.5,2369.8,4.21962]
[1728053856982,7.98582,2370.5,2369.8,4.21962]
[1728053857198,7.98582,2370.5,2369.7,0.7707]
[1728053857199,4.21888,2370.3,2369.7,0.7707]
[1728053857400,4.21908,2370.2,2369.7,4.99057]
[1728053857612,4.21908,2370.2,2369.8,4.21973]
[1728053858261,8.4383,2370.2,2369.8,4.21973]
[1728053858463,4.21978,2369.8,2369.5,4.22029]
[1728053858661,0.7899,2370.1,2369.2,0.7784]
[1728053858662,5.00995,2369.7,2369.2,0.7784]
[1728053858898,4.22015,2369.6,2369.2,4.22076]
[1728053859103,4.22015,2369.6,2369.1,4.22094]
[1728053859104,4.2203,2369.5,2369.1,4.22089]
[1728053859400,4.22014,2369.6,2369.2,4.22081]
[1728053859611,4.22041,2369.5,2369.1,4.22098]
[1728053859964,4.22041,2369.5,2368.9,4.99969]
[1728053860180,0.7612,2369.4,2368.8,4.22153]
[1728053860471,0.7612,2369.4,2368.7,5.01049]